Cogmind - Beta 16 @@@ ROGUE MODE // 2025.12.12 @ 23:24:20 Player: PopcornMaze Result: Self-destructed Performance ------------- Evolutions (2) 1000 Regions Visited (3) 600 Robots Destroyed (38) 190 Value Destroyed (1049) 1049 Prototype IDs (0) 0 Alien Tech Used (0) 0 Bonus (0) 0 TOTAL SCORE: 2839 Bonus ------- None Cogmind --------- Core Integrity 484/550 Matter 300/300 Energy 160/160 System Corruption 0% Temperature Cool (0) Movement Treading (480) Ox4 Location -8/Materials Parts ------- > --- POWER (1) -------- Light Nuclear Core > --- PROPULSION (2) --- Light Treads > --- UTILITY (6) ------ Improved Heat Sink Huge Storage Unit Makeshift Light Armor Plating > --- WEAPON (2) ------- Medium Laser Medium Laser > --- INVENTORY (25) --- Ion Engine Ion Engine Light Nuclear Core Subdweller Monowheel Subdweller Monowheel Heat Sink Peak State ------------ > --- POWER ------------ Ion Engine > --- PROPULSION ------- Light Treads Light Treads > --- UTILITY ---------- Huge Storage Unit Backup Plating I > --- WEAPON ----------- Heavy Riot Gun Heavy Riot Gun > --- INVENTORY -------- Ion Engine Ion Engine Heat Sink Makeshift Light Armor Plating Riot Gun Medium Laser Medium Laser Makeshift Shrapnel Gun SUBCON Basin [Rating: 32] Favorites ----------- Power Ion Engine Engine Ion Engine Power Core Light Nuclear Core Propulsion Wheel Treads Light Treads Wheel Wheel Utility Huge Storage Unit Device Heat Sink Storage Huge Storage Unit Processor Signal Interpreter Protection Backup Plating I Weapon Heavy Riot Gun Energy Gun Heavy Riot Gun Ballistic Gun Makeshift Shrapnel Gun Launcher Grenade Launcher Build | -11 -10 -10 -8 ------- Run | Yrd Mat Sub Mat Slots Evolved 4 | . . . 4 Power . | . . . . Propulsion . | . . . . Utility 4 | . . . 4 Weapon . | . . . . Parts Attached 37 | 6 14 11 6 Power 6 | 1 4 . 1 Engine 5 | 1 4 . . Core 1 | . . . 1 Reactor . | . . . . Propulsion 10 | 2 2 6 . Treads 4 | . . 4 . Leg . | . . . . Wheel 6 | 2 2 2 . Hover . | . . . . Flight . | . . . . Utility 9 | 1 4 . 4 Device 2 | . . . 2 Storage 4 | 1 2 . 1 Processor 1 | . 1 . . Hackware . | . . . . Protection 2 | . 1 . 1 Artifact . | . . . . Weapon 12 | 2 4 5 1 Energy Gun 9 | 2 2 4 1 Energy Cannon . | . . . . Ballistic Gun 1 | . . 1 . Ballistic Cannon . | . . . . Launcher 2 | . 2 . . Special Weapon . | . . . . Impact Weapon . | . . . . Slashing Weapon . | . . . . Piercing Weapon . | . . . . Special Melee Weapon . | . . . . Unidentified Prototypes . | . . . . Parts Lost 16 | . 3 8 5 Power 3 | . 2 . 1 Propulsion 5 | . . 3 2 Utility 1 | . . 1 . Weapon 7 | . 1 4 2 Highest Loss Streak 3 | . 2 3 3 To Critical Strikes . | . . . . Average Backups 10 | 1 10 11 6 Power 1 | . 1 2 2 Propulsion 2 | . 2 1 2 Utility 2 | . 2 2 . Weapon 4 | . 3 4 1 Tool/Special . | . . . . Unused Backups 9 | . . 4 5 Power 3 | . . . 3 Propulsion 2 | . . . 2 Utility 3 | . . 3 . Weapon 1 | . . 1 . Tool/Special . | . . . . Average Slot Usage (%) 89 | . 97 89 68 Engine 13 | . 13 14 4 Treads 8 | . . 10 8 Wheel 14 | . 28 12 6 Storage 13 | . 14 14 9 Protection 9 | . 8 9 9 Energy Gun 15 | . 6 18 10 Ballistic Gun 3 | . . 4 6 Launcher 7 | . 21 4 . Peak Build Rating 32 | 6 8 32 20 Average Rating 13 | 4 7 14 16 On Entrance 6 | . 6 8 12 Avg Prop Armor Cover (%) 11 | . . 12 10 Naked Turns . | . . . . Heaviest Build 95 | 12 92 94 95 Greatest Support 40 | 26 26 40 20 Greatest Overweight (x) 9 | . 4 9 9 Average Overweight (x) 4 | . . 6 8 Largest Inventory Capacity 25 | 8 25 25 25 Average Capacity 22 | 7 13 25 25 Most Carried 25 | 4 15 25 8 Average Carried 12 | 1 10 13 6 Final Capacity 25 | 8 25 25 25 Final Carried 13 | 4 13 9 6 Class Distribution -------------------- 100% | Mutant Dominant Class ---------------- Mutant | -10/Materials Mutant | -10/Subcaves Mutant | -8/Materials Resources | -11 -10 -10 -8 ----------- Run | Yrd Mat Sub Mat Matter Collected 1113 | 214 390 396 113 Remotely . | . . . . Salvage Created 924 | . 377 259 288 Parts 66 | . 33 18 15 Haulers Intercepted 2 | . 2 . . Recyclers Shooed . | . . . . Parts Field Recycled . | . . . . Retrieved Matter . | . . . . Parts Self-Destructed 6 | . . 6 . Prevented . | . . . . Parts Restored . | . . . . Kills | -11 -10 -10 -8 ------- Run | Yrd Mat Sub Mat Combat Hostiles Destroyed 27 | . 10 11 6 Guns 10 | . . 5 5 AOE 15 | . 9 6 . Classes Destroyed 12 | . 8 2 2 Worker 3 | . 3 . . Builder 2 | . 2 . . Hauler 2 | . 2 . . Recycler 1 | . 1 . . Operator 2 | . 2 . . Watcher 1 | . 1 . . Swarmer 5 | . 3 2 . Grunt 12 | . 7 1 4 Duelist 1 | . . . 1 Sentry 1 | . . . 1 Artisan 1 | . . 1 . Subdweller 8 | . . 8 . Best Kill Streak 6 | . 6 3 4 Combat Bots Only 4 | . 3 3 4 Max Kills in Single Turn 3 | . 3 1 1 Gunslinging . | . . . . Exploded 2 | . 2 1 . Melee . | . . . . Uniques/NPCs Destroyed . | . . . . Combat | -11 -10 -10 -8 -------- Run | Yrd Mat Sub Mat Hostile Shots Fired 112 | . 26 60 26 Missed 34 | . 10 22 2 Hits 78 | . 16 38 24 Melee 3 | . . . 3 Projectile 75 | . 16 38 21 Critical Strikes 7 | . 3 1 3 Damage Taken 1415 | . 367 622 426 Core 228 | . 74 88 66 Absorbed by Shields . | . . . . Core Remaining (%) 67 | 100 . 35 . Volleys Fired 86 | . 31 33 22 Largest 2 | . 2 2 2 Hottest 120 | . 80 120 100 Shots Fired 122 | . 40 43 39 Gun 71 | . 11 21 39 Cannon . | . . . . Launcher 51 | . 29 22 . Special . | . . . . Kinetic 13 | . . 4 9 Thermal 27 | . 1 . 26 Explosive 51 | . 29 22 . Electromagnetic 31 | . 10 17 4 Robot Hit Streak 12 | . 6 11 12 Robot Miss Streak 3 | . 2 3 3 Penetration Max . | . . . . Secondary Targets 3 | . . 1 2 Max Gunslinging Chain 1 | . . 1 1 Shots Hit Robots 68 | . 13 20 35 Core Hits 77 | . 36 21 20 Critical Kills . | . . . . Critical Parts Destroyed . | . . . . Critical Strikes 4 | . . . 4 Burn 4 | . . . 4 Melee Attacks . | . . . . Impact . | . . . . Slashing . | . . . . Piercing . | . . . . Sneak Attacks . | . . . . Combat Hostiles . | . . . . Follow-up Attacks . | . . . . Damage Inflicted 2759 | . 1305 979 475 Guns 793 | . 118 205 470 Cannons . | . . . . Explosions 1961 | . 1187 774 . Melee . | . . . . Ramming 5 | . . . 5 Kinetic 183 | . . 62 121 Thermal 349 | . 48 . 301 Explosive 1913 | . 1139 774 . Electromagnetic 309 | . 118 143 48 Impact . | . . . . Slashing . | . . . . Piercing . | . . . . Highest Corruption . | . . . . Average Corruption . | . . . . Corruption Purged . | . . . . Corruption Blocked . | . . . . Overload Shots . | . . . . Overflow Damage 60 | . 60 . . Projectiles . | . . . . Explosions 60 | . 60 . . Melee . | . . . . Knockbacks . | . . . . Impact . | . . . . Kinetic . | . . . . Secondary . | . . . . Self-Inflicted Damage 250 | . 141 107 2 Shots 11 | . 6 5 . Rammed 1 | . . . 1 Targets Rammed 1 | . . . 1 Kicked . | . . . . Crushed . | . . . . Highest Temperature 75 | . 75 9 48 Average Temperature 22 | . 32 3 17 Received Heat Transfer 456 | . 171 87 198 Siege Activations . | . . . . Martial Activations . | . . . . Shielding Activations . | . . . . Robots Disrupted . | . . . . Combat Hostiles . | . . . . Robots Corrupted 1 | . 1 . . Combat Hostiles 1 | . 1 . . Parts Fried 1 | . . 1 . Impact Corruptions . | . . . . Robots Melted 1 | . . . 1 Combat Hostiles 1 | . . . 1 Parts Melted 3 | . . 2 1 Heat Transferred 1234 | . 50 . 1184 Parts Sabotaged . | . . . . Parts Stolen . | . . . . Parts Stripped . | . . . . Power Chain Reactions 1 | . 1 . . Alert | -11 -10 -10 -8 ------- Run | Yrd Mat Sub Mat Maximum Alert Level . | . . . . Low Security (%) 100 | 100 100 . 100 Level 1 . | . . . . Level 2 . | . . . . Level 3 . | . . . . Level 4 . | . . . . Level 5 . | . . . . High Security . | . . . . Max Security . | . . . . Peak Influence 150 | . 150 . 50 Initial . | . . . . Average 19 | . 24 . 9 Influence Increases 649 | . 438 70 141 Destroy 0b10 Robot/C 380 | . 200 60 120 Destroy 0b10 Robot/NC 55 | . 55 . . Destroy Leader 76 | . 46 10 20 Successful Hack 13 | . 13 . . Disable Machine 45 | . 45 . . Destroy Structure 80 | . 79 . 1 Influence Decreases 629 | . 393 115 121 Entered New Map 22 | . . 22 . Time Decay 416 | . 245 90 81 Lost Part 56 | . 13 3 40 Purge Threat 135 | . 135 . . Squads Dispatched 1 | . 1 . . Investigation . | . . . . Extermination . | . . . . Reinforcement 1 | . 1 . . Assault . | . . . . Garrison . | . . . . Intercept . | . . . . Searches Triggered . | . . . . Construction Impeded . | . . . . Haulers Reinforced . | . . . . Active Scanning Responses . | . . . . Cargo Convoy Interrupts . | . . . . Stealth | -11 -10 -10 -8 --------- Run | Yrd Mat Sub Mat Distress Signals 2 | . 2 . . Communications Jammed . | . . . . Distress Signals . | . . . . Times Spotted 41 | . 21 11 9 Peak Tracking Total 4 | . 4 3 4 Tactical Retreats . | . . . . Traps | -11 -10 -10 -8 ------- Run | Yrd Mat Sub Mat Traps Triggered . | . . . . Indirectly . | . . . . Trap Hack Attempts . | . . . . Triggered . | . . . . Disarmed . | . . . . Reprogrammed . | . . . . Reused . | . . . . Traps Extracted . | . . . . Installed . | . . . . Triggered . | . . . . Machines | -11 -10 -10 -8 ---------- Run | Yrd Mat Sub Mat Machines Disabled 3 | . 3 . . Max in Single Turn 1 | . 1 . . Machines Repaired . | . . . . Machines Dismantled . | . . . . Machines Sabotaged . | . . . . Overloaded Fab Kills . | . . . . Hacking | -11 -10 -10 -8 --------- Run | Yrd Mat Sub Mat Machines Accessed 5 | . 3 2 . Terminals 2 | . 2 . . Fabricators . | . . . . Repair Stations 1 | . 1 . . Recycling Units . | . . . . Scanalyzers . | . . . . Garrison Access . | . . . . Total Hacks 12 | . 9 3 . Successful 7 | . 4 3 . Failed 5 | . 5 . . Catastrophic 1 | . 1 . . Database Lockouts . | . . . . Manual 7 | . 7 . . Terminals 7 | . 7 . . Fabricators . | . . . . Repair Stations 2 | . 2 . . Recycling Units . | . . . . Scanalyzers . | . . . . Garrison Access . | . . . . Terminal Hacks 6 | . 3 3 . Record 1 | . . 1 . Robot Schematic 1 | . 1 . . Open Door 1 | . . 1 . Unreport Threat 2 | . 2 . . Release Object 1 | . . 1 . Fabricator Hacks . | . . . . Repair Station Hacks 1 | . 1 . . Refit 1 | . 1 . . Recycling Unit Hacks . | . . . . Scanalyzer . | . . . . Garrison Access Hacks . | . . . . Unauthorized Hacks . | . . . . Terminals . | . . . . Fabricators . | . . . . Repair Stations . | . . . . Recycling Units . | . . . . Scanalyzers . | . . . . Garrison Access . | . . . . Data Cores Recovered . | . . . . Used . | . . . . Hacking Detections 2 | . 2 . . Full Trace Events . | . . . . Feedback Events . | . . . . Feedback Blocked . | . . . . Robot Schematics Acquired 1 | . 1 . . Robots Built . | . . . . Authchips . | . . . . Time . | . . . . Total Robot Build Rating . | . . . . Part Schematics Acquired . | . . . . Parts Built . | . . . . Authchips . | . . . . Time . | . . . . Total Part Build Rating . | . . . . Part Studies Acquired . | . . . . Parts Repaired . | . . . . Time . | . . . . Parts Recycled . | . . . . Recycled Matter . | . . . . Retrieved Matter . | . . . . Retrieved Components . | . . . . Parts Scanalyzed . | . . . . Part Schematics Acquired . | . . . . Parts Damaged . | . . . . Bothacking | -11 -10 -10 -8 ------------ Run | Yrd Mat Sub Mat Used RIF Installer . | . . . . Robots Hacked . | . . . . Non-combat . | . . . . Combat . | . . . . Robot Hacks Applied . | . . . . Relay Couplers Released . | . . . . Fabnet Peak Effective % . | . . . . Robots Rewired . | . . . . Allies Hacked . | . . . . Hacks Repelled . | . . . . Allies | -11 -10 -10 -8 -------- Run | Yrd Mat Sub Mat Total Allies . | . . . . Largest Group . | . . . . Highest-Rated Group . | . . . . Highest-Rated Ally . | . . . . Total Orders . | . . . . Ally Attacks . | . . . . Total Damage . | . . . . Kills . | . . . . Allies Corrupted . | . . . . Allies Melted . | . . . . Intel | -11 -10 -10 -8 ------- Run | Yrd Mat Sub Mat Active Infowar (turns) . | . . . . Robot Analysis Total . | . . . . Derelict Logs Recovered 1 | . . 1 . Drone Launches . | . . . . Drone Recoveries . | . . . . Exploration | -11 -10 -10 -8 ------------- Run | Yrd Mat Sub Mat Turns Passed 4821 | 55 866 3558 342 Spaces Moved 2483 | 45 734 1603 101 Core 1 | 1 . . . Treads 280 | . . 269 11 Legs . | . . . . Wheels 2202 | 44 734 1334 90 Hover . | . . . . Flight . | . . . . Fastest Speed 50 | 50 90 140 200 Average Speed 179 | 86 100 214 243 Slowest Speed 480 | 90 140 320 480 Overloaded Moves . | . . . . Propulsion Burnouts . | . . . . Robots Hopped . | . . . . Potential Cave-ins . | . . . . Cave-ins Triggered . | . . . . Exploration Rate (%) 41 | 4 86 63 11 Regions Visited 3 Branch Regions 1 Pre-discovered Areas 1 | . . 1 . Known Exits Taken 1 | . 1 . . Unknown Exits Taken 2 | 1 . 1 . Scrap Searched 10 | . . 10 . Spaces Dug . | . . . . Terrain Destroyed 206 | . 104 102 . Melee . | . . . . Projectile . | . . . . AOE 206 | . 104 102 . Terrain Rammed . | . . . . Walls Destroyed . | . . . . Machines Disabled . | . . . . Actions | -11 -10 -10 -8 --------- Run | Yrd Mat Sub Mat Total 2723 | 58 821 1688 156 Wait 63 | 4 23 15 21 Move 2480 | 44 733 1602 101 Hop . | . . . . Pick Up 30 | 4 12 13 1 Fast Attach 13 | 6 2 2 3 Attach 13 | . 2 6 5 Detach 2 | . 1 . 1 Swap 14 | . 10 4 . Drop 20 | . 7 12 1 Fire 86 | . 31 33 22 Melee . | . . . . Ram 1 | . . . 1 Kick . | . . . . Crush . | . . . . Escape Stasis . | . . . . Rewire . | . . . . Trap . | . . . . Miscellaneous 1 | . . 1 . Route ------- -11/Scrapyard -10/Materials (discovered 4 exits: *Mat x2 / [*Min] / *Sub) -10/Subcaves (discovered 2 exits: *Mat x2) -8/Materials History --------- Turn | Location | Event 5 | -11/Scrapyard | Discovered new exit (range 15) 56 | -11/Scrapyard | Entered Materials 241 | -10/Materials | Discovered new exit (range 16) 304 | -10/Materials | Build established: Mutant 348 | -10/Materials | Discovered new exit (range 15) 460 | -10/Materials | Discovered new exit (range 11) 661 | -10/Materials | Identified exit to Materials 910 | -10/Materials | Discovered new exit (range 9) 919 | -10/Materials | Identified exit to Subcaves 922 | -10/Materials | Entered Subcaves 1084 | -10/Subcaves | Shifting Twisted Machinery released Hvy. Riot Gun 1344 | -10/Subcaves | Ambushed by Subdweller buried in earth 1347 | -10/Subcaves | Core integrity fell below 50% 1634 | -10/Subcaves | Shifting Twisted Machinery released Sub. Laser 1953 | -10/Subcaves | Ambushed by angry Subdweller bent on revenge 2127 | -10/Subcaves | Found SUBCON Basin 2567 | -10/Subcaves | Released subatomizers from SUBCON Basin 3312 | -10/Subcaves | Lost 3 parts (1u2w) 3481 | -10/Subcaves | Discovered new exit (range 7) 3900 | -10/Subcaves | Discovered new exit (range 14) 4480 | -10/Subcaves | Entered Materials 4480 | -8/Materials | Evolved 4 slots: Utility x4 4774 | -8/Materials | Lost 3 parts (2n1w) 4822 | -8/Materials | Self-destructed Last Messages --------------- 04752_ R-06 Scavenger collects Lgt. Nuclear Core. 04753_ R-06 Scavenger collects Melee Analysis Suite. 04754_ Y-45 Defender suffers critical hit (Burn). 04755_ K-01 Serf collects debris. 04755_ R-06 Scavenger collects Aluminum Leg. 04758_ K-01 Serf collects debris. 04763_ Critical hit (Burn: +37). 04763_ K-01 Serf collects debris. 04763_ Y-45 Defender critical meltdown. 04763_ Lgt. Armor Plating melted. 04764_ R-06 Scavenger collects Heat Sink. 04765_ K-01 Serf collects debris. 04766_ M-13 Machinist suffers critical hit (Burn). 04767_ K-01 Serf collects debris. 04822_ Connecting with Terminal... 04822_ Current location identified: Materials Map ----- +----------------------------------------------------+ | | | | | | | | | | | | | | | | | | | | | | | | | | | | | | | | | | | | | ???????????????????????????????????????????????? | | ???????????????????????????????????????????????? | | ???????????????????????????????????????????????? | | ??????????????????????????????????????########?? | | ?????????????????????##########???????# #?? | | ?????????????????????# #???????# """ #?? | | ?????????????????????#" """ #???????# """ #?? | | ?????????????????????#T@""" #???????#! """ #?? | | ?????????????????????#" """ #???????# #?? | | ?????????????????????# """ #?####### #?? | | ?????????????????????# """ #?# ###+###### | | ?????????????????????# #?# | | ?????????????????????# #?# | | ???????????????? ""??# #?# | | ??????????????# """ ###+######?# """ """ "" | | ??????????????? + ######### """ """ "" | | ?????????????????????## +% # """ """ "" | | ??????????????????????# ^## # | | ??????????????????????# ## # | | ??????????????????????# ## # | | ?????????????????????? # + | | ????????????????????? # # | | ???????????????????? ] # # ###+####### | | ???????????????????### # # ## % #????# | | ?????????????????????###### # ## = #????# | | ??????????????????????????# # ## #????# | | ??????????????????????????# # ## #????# | | ??????????????????????????# + + #????# | | ??????????????????????????# # ## #????? | | ??????????????????????????############# #????? | | ??????????????????????????????????????#####????? | | ???????????????????????????????????????????????? | +----------------------------------------------------+ Best States ------------- Heat Dissipation 55 Energy Generation 14 Energy Capacity 250 Matter Stores 300 Matter Capacity 300 Sight Range 16 Terrain Scan Density 10 Armor Coverage 100 Evasion (%) 44 Recoil Reduction 2 Item Schematics ----------------- None Robot Schematics ------------------ M-13 Machinist | -10/Materials | Hacked Fabricated ------------ Nothing Repaired ---------- Nothing Studied --------- None Alien Tech Used ----------------- None Achievements -------------- None Challenges ------------ None Game ------ Seed ParticleTowerSystem Manual? 0 Play Time 00:28:09 Cumulative 12.8 hours Start 2025.12.10 @ 22:43:05 End 2025.12.12 @ 23:24:20 Sessions 3 Manual Loads 0 Difficulty Rogue Special Mode None Game No. 16 Rogue 16 Adventurer 0 Explorer 0 Win Type - Total 0 Types 0/0/0/0/0/0/0/0/0/0 Lore% 5 Gallery% 16 Achievement% 18 Wizard Run 0 Options --------- Layout 1 ASCII 0 Keyboard 0 Movement Numpad Keybinds 0 Fullscreen 1 Font 32/SmallcapsGlow Map View 50x35 Zoom Use 0% Tactical HUD 1 Map Filters NONE Filters NONE Steam 1 RUN: 60b888b4-2978-4ec1-8873-0fed942d3f27